[Event "German Bundesliga 2023-24"]
[Site "Germany"]
[Date "2024.02.04"]
[Round "8.11"]
[White "Lammers, Markus"]
[Black "Shirov, Alexei"]
[Result "0-1"]
[ECO "D13"]
[WhiteElo "2336"]
[BlackElo "2657"]
[Annotator "TA"]
[PlyCount "80"]
[EventDate "2023.10.20"]
[EventType "team-tourn"]
[EventCountry "GER"]
[SourceTitle "playchess.com"]
[Source "ChessBase"]
[SourceQuality "1"]
[TimeControl "40/6000+30:3000+30"]

{[%evp 16,80,13,7,23,22,31,10,34,35,35,29,23,16,23,19,24,28,21,16,35,0,0,0,0,0,0,-7,-6,-9,-9,-8,0,0,0,-8,0,0,0,-20,-19,-16,-18,-13,-6,-24,-27,-133,-132,-140,-132,-153,-153,-145,-2,-907,-887,-2066,-2010,-1762,-1736,-2013,-2035,-29985,-29986,-29990,-1495]} 1. d4 {[%emt 0:00:04]} d5 {[%emt 0:02:05]} 2. c4 {[%emt 0:00:08]} c6 {[%emt 0:00:03]} 3. cxd5 {[%emt 0:00:35]} cxd5 {[%emt 0:00:04]} 4. Nc3 {[%emt 0:00:08]} Nf6 {[%emt 0:00:09]} 5. Nf3 {[%emt 0:00:13]} Nc6 {[%emt 0:00:05]} 6. Bf4 {[%emt 0:00:08]} a6 {[%emt 0:00:22]} 7. e3 {[%emt 0:00:32]} Bg4 {[%emt 0:00:05]} 8. h3 {[%emt 0:03:18]} Bxf3 {[%emt 0:04:30]} 9. Qxf3 {[%emt 0:00:10]} Qb6 {[%emt 0:02:22]} 10. Rb1 {[%emt 0:02:19]} (10. Nxd5 $2 Nxd5 11. Bd3 (11. Qxd5 $2 Qxb2 12. Qb3 Qxa1+ $19) 11... Nxf4 (11... Qxb2 $2 12. O-O $19) 12. Qxf4 g6 $19 (12... Qxb2 $2 13. O-O $19)) 10... e6 {[%emt 0:01:55]} 11. Qd1 {[%emt 0:00:48]} Qa5 {[%emt 0:06:49] The position is equal.} 12. Qb3 {[%emt 0:10:00]} b5 {[%emt 0:04:22]} 13. Bd3 {[%emt 0:04:48]} Be7 {[%emt 0:02:40]} 14. O-O {[%emt 0:01:53][%cal Rc3b5]} O-O {[%emt 0:01:56]} 15. Rfc1 {[%emt 0:09:24][%cal Rc3b5]} Rfc8 {[%emt 0:01:35]} 16. a4 {[%emt 0:01:29][%cal Ra4b5]} Nb4 {[%emt 0:07:38]} 17. Bf1 {[%emt 0:05:45][%cal Ra4b5]} Ne4 {[%emt 0:00:35]} 18. Ra1 {[%emt 0:31:35][%cal Ra4b5]} (18. Nxe4 {simplifies} dxe4 19. Rxc8+ Rxc8 20. axb5 axb5 21. Qd1) 18... Nd2 {[%emt 0:04:22] A dynamic duo of knights.} 19. Qd1 {[%emt 0:00:39]} Nxf1 {[%emt 0:00:09]} 20. Qxf1 {[%emt 0:08:00]} bxa4 {[%emt 0:00:38]} 21. Rxa4 {[%emt 0:00:48]} Qb6 {[%emt 0:00:45]} 22. Qe2 {[%emt 0:00:21]} Rc4 {[%emt 0:07:06]} 23. Raa1 {[%emt 0:01:20]} Rac8 {[%emt 0:03:40]} 24. Qd1 {[%emt 0:02:02]} Qb7 {[%emt 0:15:42]} 25. Bg3 {[%emt 0:05:03]} g6 {[%emt 0:00:27]} 26. Qb3 {[%emt 0:04:41]} h5 {[%emt 0:02:01]} 27. Ne2 {[%emt 0:01:36]} h4 {[%emt 0:00:40]} 28. Bf4 {[%emt 0:01:02]} Rc2 {[%emt 0:12:09]} 29. Nc3 {[%emt 0:10:08]} Rd2 {[%emt 0:04:46]} 30. Na2 {[%emt 0:00:53]} (30. Be5 {seems wilder.} Qd7 31. Bf6 Nd3 32. Rc2) 30... Rc4 {[%emt 0:03:32]} 31. Rc3 {[%emt 0:01:44]} (31. Rxc4 $2 dxc4 32. Qxc4 Nd3 $19 (32... Rxb2 33. Nxb4 Rxb4 34. Qxa6 $14)) (31. Rd1 $11 {remains equal.} Rxd1+ 32. Rxd1) 31... Qb5 $17 {[%emt 0:09:27] Black has more active pieces.} 32. Nxb4 {[%emt 0:02:29]} Rxb4 {[%emt 0:04:49]} 33. Rc8+ {[%emt 0:00:04]} Kg7 {[%emt 0:00:39]} 34. Qa3 {[%emt 0:01:10] [#]} Rxf2 {[%emt 0:04:32]} 35. Qxa6 $2 {[%emt 0:01:25][%mdl 8192] [#] This costs White the game.} (35. Be5+ $11 f6 36. Rc7) 35... Rf1+ $3 $19 {[%emt 0:02:20][%mdl 512]} 36. Kh2 {[%emt 0:00:01]} (36. Rxf1 Qxa6) 36... Qxa6 {[%emt 0:00:20]} (36... Rxb2 $2 {too greedy.} 37. Qxb5 Rxb5 38. Rxf1 $18) 37. Rxa6 {[%emt 0:00:05]} Rxb2 {[%emt 0:00:05] ( -> ...Rbb1)} 38. Be5+ {[%emt 0:01:15]} Bf6 {[%emt 0:00:29]} 39. Bxf6+ {[%emt 0:01:23]} Kxf6 {[%emt 0:00:15]} 40. Rh8 {[%emt 0:00:11]} Kg5 {[%emt 0:00:34] Weighted Error Value: White=0.56/Black=0.07 (flawless) .  Loses game:     	White=1     	---        Mistake:       	White=1     	Black=1      Inaccurate:     	White=2     	---        OK:         	White=11    	Black=11     Best:        	---       	Black=3      Brilliant:      	---       	Black=1} (40... g5 $142 41. Rb8 Rxb8 42. Ra2 Rbb1 43. g4 Rh1+ 44. Kg2 Rbg1+ 45. Kf2 Rg3 (45... Rf1+ $2 46. Kg2 $19) 46. Re2 Rgxh3 (46... Rhxh3 {gets mated.} 47. Ke1 Rxe3 48. Kf2 Rxe2+ 49. Kxe2 Ra3 50. Kf2 Rg3 51. Kf1 h3 52. Kf2 Rg2+ 53. Kf3 Rb2 54. Ke3 h2 55. Kd3 h1=Q 56. Kc3 Qc1+ 57. Kd3 Qd2#) (46... Rh2+ {is a self mate.} 47. Ke1 Rxe2+ 48. Kxe2 Rxh3 49. Kf1 Rh2 50. Kg1 Ra2 51. Kh1 h3 52. Kg1 Rg2+ 53. Kh1 Kg6 54. e4 dxe4 55. d5 e3 56. dxe6 e2 57. exf7 e1=Q#) 47. e4 R1h2+ 48. Ke1 dxe4 49. d5 Rxe2+ (49... exd5 50. Rf2+ Rxf2 51. Kxf2 Rf3+ 52. Kg1 h3 53. Kh2 e3 54. Kh1 e2 55. Kh2 Rf2+ 56. Kxh3 e1=Q 57. Kg3 Qe3#) 50. Kxe2 exd5 51. Kf2 d4 52. Ke2 Rh2+ 53. Kf1 e3 54. Ke1 h3 55. Kf1 Rg2 56. Ke1 h2 57. Kf1 h1=Q#) 0-1

[Event "German Bundesliga 2023-24"]
[Site "Germany"]
[Date "2024.02.04"]
[Round "8.12"]
[White "Wojtaszek, Radoslaw"]
[Black "Schulze, Torben"]
[Result "1-0"]
[ECO "A61"]
[WhiteElo "2668"]
[BlackElo "2325"]
[Annotator "TA"]
[PlyCount "83"]
[EventDate "2023.10.20"]
[EventType "team-tourn"]
[EventCountry "GER"]
[SourceTitle "playchess.com"]
[Source "ChessBase"]
[SourceQuality "1"]
[TimeControl "40/6000+30:3000+30"]

{[%evp 18,82,31,33,38,29,60,54,42,26,47,39,37,11,58,8,83,80,66,73,72,72,71,67,52,56,78,75,84,70,96,99,118,116,106,113,232,144,231,225,191,208,224,234,313,303,287,272,227,171,314,231,364,183,337,321,463,445,1604,1485,2357,2138,12825,6390,29981,29982,29999]} 1. d4 {[%emt 0:00:57]} Nf6 {[%emt 0:00:19]} 2. c4 {[%emt 0:00:14]} c5 {[%emt 0:00:08]} 3. d5 {[%emt 0:00:14]} e6 {[%emt 0:00:06]} 4. Nc3 {[%emt 0:00:12]} exd5 {[%emt 0:00:03]} 5. cxd5 {[%emt 0:00:07]} d6 {[%emt 0:00:03]} 6. Nf3 {[%emt 0:04:57]} g6 {[%emt 0:00:16]} 7. Bf4 {[%emt 0:00:07]} a6 {[%emt 0:00:29]} 8. a4 {[%emt 0:00:14]} Bg7 {[%emt 0:00:13]} 9. h3 {[%emt 0:00:30]} O-O {[%emt 0:00:06]} 10. e3 {[%emt 0:00:05]} Ne8 {[%emt 0:00:25]} 11. Be2 {[%emt 0:01:29]} b6 {[%emt 0:01:41]} 12. O-O {[%emt 0:00:56]} Nd7 {[%emt 0:00:19] White is slightly better.} 13. e4 {[%emt 0:05:46]} Ne5 {[%emt 0:03:41]} 14. Nxe5 {[%emt 0:10:08]} Bxe5 {[%emt 0:00:41]} 15. Qd2 {[%emt 0:00:03]} Ra7 {[%emt 0:13:01]} (15... Bxf4 $11 {is superior.} 16. Qxf4 f5) 16. Rae1 {[%emt 0:03:09]} (16. Bxe5 $14 dxe5 17. Qe3) 16... f5 {[%emt 0:16:38]} (16... Bxf4 $11 17. Qxf4 f5) 17. Bxe5 $16 {[%emt 0:02:18]} dxe5 {[%emt 0:03:21]} 18. f4 {[%emt 0:00:45]} Re7 {[%emt 0:12:17]} 19. exf5 {[%emt 0:11:55]} gxf5 {[%emt 0:06:59]} 20. fxe5 {[%emt 0:15:49]} Rxe5 {[%emt 0:04:10]} 21. Qf4 $36 {[%emt 0:02:11][%mdl 2048] White fights for an advantage.} Qf6 {[%emt 0:12:44]} 22. Bd3 {[%emt 0:02:41] White leaves nothing to chance now.} Rxe1 {[%emt 0:00:46]} 23. Rxe1 {[%emt 0:00:06]} Nd6 {[%emt 0:01:13] [#]} 24. Kh1 $1 {[%emt 0:00:06][%cal Od3a6,Bg1h1,Bh1h2,Bh2g3,Bg3f4][%mdl 32] White is much more active.} Re8 {[%emt 0:14:04]} 25. Rxe8+ {[%emt 0:02:48]} Nxe8 {[%emt 0:00:03]} 26. Qb8 {[%emt 0:00:16]} Qg5 {[%emt 0:13:42]} 27. Kh2 {[%emt 0:14:15]} Qe3 {[%emt 0:02:17]} (27... Bd7 $16 28. Bxa6 Kf7) 28. Be2 {[%emt 0:02:14]} Bd7 {[%emt 0:01:23] [#]} 29. Qg3+ $1 {[%emt 0:08:57]} ({Resist} 29. Qxb6 Bxa4 30. Bxa6 (30. Nxa4 Qe5+ 31. Kg1 Qxe2 $14) 30... Qe5+ 31. g3 Qe3) 29... Qxg3+ {[%emt 0:00:04]} 30. Kxg3 $18 {[%emt 0:00:03][%mdl 4096] Endgame. KBN-KBN} Kg7 {[%emt 0:03:32]} 31. Kf4 {[%emt 0:00:18]} Kf6 {[%emt 0:00:07]} 32. Bxa6 {[%emt 0:00:29] aiming for Bb5.} Nd6 {[%emt 0:00:54]} 33. b3 {[%emt 0:04:06]} h6 {[%emt 0:00:29]} (33... Nf7 $142 34. Nb5 c4) 34. Bd3 {[%emt 0:00:35]} Be8 {[%emt 0:00:40]} (34... Nf7 $142 35. Bb5 Bxb5 36. Nxb5 Ne5) 35. g3 {[%emt 0:01:13]} (35. Nb5 $142 Bxb5 36. Bxb5) 35... Bd7 $2 {[%emt 0:00:14]} (35... Bf7 {keeps fighting.} 36. Bc2 Be8) 36. h4 {[%emt 0:00:05]} Be8 {[%emt 0:00:20]} (36... Nf7 $142 37. Bb5 Ne5 38. Bxd7 Nxd7) 37. Bxf5 {[%emt 0:03:45]} Nxf5 {[%emt 0:01:00]} (37... h5 $142 38. Bd3 Bf7) 38. Ne4+ {[%emt 0:00:02]} Kg6 {[%emt 0:00:29] [#]} 39. h5+ $1 {[%emt 0:00:03][%mdl 512]} Kxh5 {[%emt 0:00:28]} (39... Kf7 40. Kxf5) 40. Kxf5 {[%emt 0:00:04][%cal Re4f6]} Bg6+ {[%emt 0:00:34]} 41. Kf4 {[%emt 0:53:43][%cal Re4f6]} b5 {[%emt 0:06:48]} 42. Nf6# {[%emt 0:00:28] Weighted Error Value: White=0.19 (very precise) /Black=0.65.  Mistake:       	White=2     	Black=9      Inaccurate:     	White=2     	Black=4      OK:         	White=8     	Black=6      Best:        	White=4     	Black=1      Strong:       	White=1     	---} 1-0

[Event "German Bundesliga 2023-24"]
[Site "Germany"]
[Date "2024.02.04"]
[Round "8.12"]
[White "Dragnev, Valentin"]
[Black "Anton Guijarro, David"]
[Result "1/2-1/2"]
[ECO "D41"]
[WhiteElo "2586"]
[BlackElo "2653"]
[Annotator "RC"]
[PlyCount "94"]
[EventDate "2023.10.20"]
[EventType "team-tourn"]
[EventCountry "GER"]
[SourceTitle "playchess.com"]
[Source "ChessBase"]
[SourceQuality "1"]
[TimeControl "40/6000+30:3000+30"]

1. Nf3 {[%emt 0:00:04]} d5 {[%emt 0:02:14]} 2. e3 {[%emt 0:00:07]} Nf6 {[%emt 0:03:47]} 3. c4 {[%emt 0:00:20]} c5 {[%emt 0:04:05]} 4. cxd5 {[%emt 0:00:25]} Nxd5 {[%emt 0:00:06]} 5. Nc3 {[%emt 0:00:33]} e6 {[%emt 0:01:15]} 6. Bc4 {[%emt 0:18:43]} Be7 {[%emt 0:03:50]} 7. O-O {[%emt 0:00:09]} O-O {[%emt 0:01:24]} 8. Qe2 {[%emt 0:00:05]} Nc6 {[%emt 0:07:58]} 9. d4 {[%emt 0:03:40]} cxd4 {[%emt 0:02:02]} 10. exd4 {[%emt 0:00:07]} Nb6 {[%emt 0:03:15]} 11. Rd1 {[%emt 0:09:02]} Nxc4 {[%emt 0:01:24]} 12. Qxc4 {[%emt 0:00:19]} Nb4 {[%emt 0:04:35]} 13. Bf4 {[%emt 0:15:24]} Bd7 {[%emt 0:24:18]} 14. a3 {[%emt 0:09:58]} Nd5 {[%emt 0:02:25]} 15. Nxd5 {[%emt 0:00:15]} exd5 {[%emt 0:00:05]} 16. Qxd5 {[%emt 0:00:41]} Bc6 {[%emt 0:03:09]} 17. Qb3 {[%emt 0:04:25]} Bd5 {[%emt 0:01:32]} 18. Qd3 {[%emt 0:00:23]} Rc8 {[%emt 0:00:43]} 19. Ne5 {[%emt 0:05:36]} Bd6 {[%emt 0:05:37]} 20. Bg3 {[%emt 0:13:03]} Re8 {[%emt 0:03:06]} 21. Rd2 {[%emt 0:12:20]} h5 {[%emt 0:08:47]} 22. h4 {[%emt 0:01:32]} Be7 {[%emt 0:05:36]} 23. Qf5 {[%emt 0:07:57]} Bxh4 {[%emt 0:01:24]} 24. Bxh4 {[%emt 0:00:25]} Qxh4 {[%emt 0:00:05]} 25. Nf3 {[%emt 0:01:38]} Qd8 {[%emt 0:06:57]} 26. Qxh5 {[%emt 0:00:22]} Rc6 {[%emt 0:00:15]} 27. Qg5 {[%emt 0:04:57]} Qxg5 {[%emt 0:04:05]} 28. Nxg5 {[%emt 0:00:01]} Rg6 {[%emt 0:01:09]} 29. f4 {[%emt 0:00:01]} f6 {[%emt 0:00:38]} 30. Nh3 {[%emt 0:00:01]} Re3 {[%emt 0:01:18]} 31. Kh2 {[%emt 0:01:37]} Rgg3 {[%emt 0:05:59]} 32. Kg1 {[%emt 0:01:41]} Rg4 {[%emt 0:02:03]} 33. Kh2 {[%emt 0:00:16]} Rgg3 {[%emt 0:01:00]} 34. Kg1 {[%emt 0:00:01]} Rd3 {[%emt 0:00:43]} 35. Rxd3 {[%emt 0:01:14]} Rxd3 {[%emt 0:00:07]} 36. Rf1 {[%emt 0:00:24]} Rxd4 {[%emt 0:00:44]} 37. Rf2 {[%emt 0:00:36]} Kh7 {[%emt 0:00:40]} 38. Kh2 {[%emt 0:00:20]} Be6 {[%emt 0:00:35]} 39. Ng1 {[%emt 0:00:39]} Kg6 {[%emt 0:00:32]} 40. Ne2 {[%emt 0:00:22]} Rd5 {[%emt 0:00:23]} 41. Ng3 {[%emt 0:07:43]} Bd7 {[%emt 0:03:22]} 42. Nf1 {[%emt 0:14:57]} Rd3 {[%emt 0:05:51]} 43. Rd2 {[%emt 0:06:08]} Rxd2 {[%emt 0:01:14]} 44. Nxd2 {[%emt 0:00:02]} Kf5 {[%emt 0:00:37]} 45. g3 {[%emt 0:01:23]} Ke6 {[%emt 0:04:54]} 46. Kg2 {[%emt 0:00:20]} Kd5 {[%emt 0:00:10]} 47. Kf2 {[%emt 0:00:13]} Bf5 {[%emt 0:12:12]} 1/2-1/2

[Event "German Bundesliga 2023-24"]
[Site "Germany"]
[Date "2024.02.04"]
[Round "8.12"]
[White "Teclaf, Pawel"]
[Black "Tregubov, Pavel V."]
[Result "1/2-1/2"]
[ECO "E33"]
[WhiteElo "2571"]
[BlackElo "2567"]
[Annotator "RC"]
[PlyCount "57"]
[EventDate "2023.10.20"]
[EventType "team-tourn"]
[EventCountry "GER"]
[SourceTitle "playchess.com"]
[Source "ChessBase"]
[SourceQuality "1"]
[TimeControl "40/6000+30:3000+30"]

1. Nf3 {[%emt 0:00:14]} Nf6 {[%emt 0:01:20]} 2. c4 {[%emt 0:00:16]} Nc6 {[%emt 0:02:19]} 3. d4 {[%emt 0:07:24]} e6 {[%emt 0:00:16]} 4. Nc3 {[%emt 0:06:20]} Bb4 {[%emt 0:00:10]} 5. Qc2 {[%emt 0:00:03]} d6 {[%emt 0:01:02]} 6. a3 {[%emt 0:00:46]} Bxc3+ {[%emt 0:00:09]} 7. Qxc3 {[%emt 0:00:04]} O-O {[%emt 0:05:53]} 8. b4 {[%emt 0:01:41]} e5 {[%emt 0:01:39]} 9. dxe5 {[%emt 0:03:14]} Nxe5 {[%emt 0:00:14]} 10. Nxe5 {[%emt 0:08:04]} dxe5 {[%emt 0:00:07]} 11. Bb2 {[%emt 0:01:08]} Re8 {[%emt 0:01:22]} 12. g3 {[%emt 0:07:42]} Ne4 {[%emt 0:05:53]} 13. Qe3 {[%emt 0:18:35]} Nd6 {[%emt 0:01:06]} 14. Rd1 {[%emt 0:04:19]} Qf6 {[%emt 0:12:37]} 15. Qc1 {[%emt 0:01:42]} Be6 {[%emt 0:15:58]} 16. Bg2 {[%emt 0:07:05]} Nxc4 {[%emt 0:20:26]} 17. Bxb7 {[%emt 0:00:48]} Rab8 {[%emt 0:00:43]} 18. Bc6 {[%emt 0:00:35]} Rec8 {[%emt 0:08:00]} 19. O-O {[%emt 0:02:12]} Nxb2 {[%emt 0:00:16]} 20. Qxb2 {[%emt 0:00:10]} Bh3 {[%emt 0:00:42]} 21. Bd7 {[%emt 0:01:25]} Bxf1 {[%emt 0:09:59]} 22. Bxc8 {[%emt 0:00:13]} Bxe2 {[%emt 0:01:03]} 23. Qxe5 {[%emt 0:00:06]} Rxc8 {[%emt 0:00:31]} 24. Qxe2 {[%emt 0:00:29]} h6 {[%emt 0:03:04]} 25. Qc4 {[%emt 0:05:44]} Rd8 {[%emt 0:03:50]} 26. Rc1 {[%emt 0:10:20]} Rd2 {[%emt 0:01:02]} 27. Qc5 {[%emt 0:00:31]} a6 {[%emt 0:05:00]} 28. Qe3 {[%emt 0:00:54]} Qd8 {[%emt 0:00:54]} 29. Re1 {[%emt 0:04:36]} 1/2-1/2

[Event "German Bundesliga 2023-24"]
[Site "Germany"]
[Date "2024.02.04"]
[Round "8.12"]
[White "Burg, Twan"]
[Black "Van Foreest, Lucas"]
[Result "1/2-1/2"]
[ECO "C47"]
[WhiteElo "2530"]
[BlackElo "2540"]
[Annotator "RC"]
[PlyCount "40"]
[EventDate "2023.10.20"]
[EventType "team-tourn"]
[EventCountry "GER"]
[SourceTitle "playchess.com"]
[Source "ChessBase"]
[SourceQuality "1"]
[TimeControl "40/6000+30:3000+30"]

1. e4 {[%emt 0:00:03]} e5 {[%emt 0:00:22]} 2. Nf3 {[%emt 0:00:08]} Nc6 {[%emt 0:00:10]} 3. Nc3 {[%emt 0:00:09]} Nf6 {[%emt 0:00:20]} 4. d4 {[%emt 0:00:08]} exd4 {[%emt 0:00:04]} 5. Nxd4 {[%emt 0:00:04]} Bb4 {[%emt 0:00:04]} 6. Nxc6 {[%emt 0:00:13]} bxc6 {[%emt 0:01:25]} 7. Bd3 {[%emt 0:00:07]} O-O {[%emt 0:00:07]} 8. O-O {[%emt 0:00:06]} d5 {[%emt 0:00:02]} 9. Bd2 {[%emt 0:00:12]} Bxc3 {[%emt 0:00:47]} 10. Bxc3 {[%emt 0:00:09]} dxe4 {[%emt 0:00:10]} 11. Bxf6 {[%emt 0:00:09]} Qxf6 {[%emt 0:00:05]} 12. Bxe4 {[%emt 0:00:12]} Qxb2 {[%emt 0:00:32]} 13. Bxc6 {[%emt 0:00:13]} Rb8 {[%emt 0:00:07]} 14. Rb1 {[%emt 0:00:14]} Qxb1 {[%emt 0:00:05]} 15. Qxb1 {[%emt 0:00:04]} Rxb1 {[%emt 0:00:05]} 16. Rxb1 {[%emt 0:00:04]} Rd8 {[%emt 0:00:50]} 17. h4 {[%emt 0:01:52]} Kf8 {[%emt 0:00:52]} 18. Rb8 {[%emt 0:03:31]} Ke7 {[%emt 0:00:47]} 19. Bf3 {[%emt 0:00:41]} Ba6 {[%emt 0:04:40]} 20. Rb3 {[%emt 0:00:38]} Rd6 {[%emt 0:06:10]} 1/2-1/2

[Event "German Bundesliga 2023-24"]
[Site "Germany"]
[Date "2024.02.04"]
[Round "8.13"]
[White "Cheng, Bobby"]
[Black "Swinkels, Robin"]
[Result "1/2-1/2"]
[ECO "E04"]
[WhiteElo "2572"]
[BlackElo "2515"]
[Annotator "RC"]
[PlyCount "43"]
[EventDate "2023.10.20"]
[EventType "team-tourn"]
[EventCountry "GER"]
[SourceTitle "playchess.com"]
[Source "ChessBase"]
[SourceQuality "1"]
[TimeControl "40/6000+30:3000+30"]

1. d4 {[%emt 0:00:03]} d5 {[%emt 0:00:08]} 2. c4 {[%emt 0:00:06]} e6 {[%emt 0:00:04]} 3. Nf3 {[%emt 0:00:14]} Nf6 {[%emt 0:00:04]} 4. g3 {[%emt 0:00:14]} dxc4 {[%emt 0:00:43]} 5. Bg2 {[%emt 0:00:08]} c5 {[%emt 0:00:05]} 6. O-O {[%emt 0:00:21]} Nc6 {[%emt 0:00:05]} 7. Ne5 {[%emt 0:00:13]} Bd7 {[%emt 0:01:47]} 8. Nxc4 {[%emt 0:00:20]} cxd4 {[%emt 0:02:05]} 9. Bf4 {[%emt 0:00:12]} Be7 {[%emt 0:01:25]} 10. Nd6+ {[%emt 0:00:55]} Kf8 {[%emt 0:00:05]} 11. Nxb7 {[%emt 0:00:16]} Qb6 {[%emt 0:00:07]} 12. Nd6 {[%emt 0:00:06]} Qc5 {[%emt 0:02:53]} 13. Ne4 {[%emt 0:00:24]} Nxe4 {[%emt 0:05:10]} 14. Bxe4 {[%emt 0:00:06]} e5 {[%emt 0:02:52]} 15. Bd2 {[%emt 0:01:23]} f5 {[%emt 0:33:45]} 16. Bg2 {[%emt 0:00:50]} Rd8 {[%emt 0:06:33]} 17. e4 {[%emt 0:14:38]} dxe3 {[%emt 0:10:49]} 18. Bxe3 {[%emt 0:00:36]} Nd4 {[%emt 0:00:04]} 19. Bxd4 {[%emt 0:27:47]} Qxd4 {[%emt 0:06:42]} 20. Qxd4 {[%emt 0:02:09]} exd4 {[%emt 0:00:03]} 21. Nd2 {[%emt 0:00:05]} Be6 {[%emt 0:09:01]} 22. Nf3 {[%emt 0:06:59]} 1/2-1/2

[Event "German Bundesliga 2023-24"]
[Site "Germany"]
[Date "2024.02.04"]
[Round "8.13"]
[White "Hausrath, Daniel"]
[Black "Gumularz, Szymon"]
[Result "1/2-1/2"]
[ECO "D02"]
[WhiteElo "2462"]
[BlackElo "2580"]
[Annotator "RC"]
[PlyCount "72"]
[EventDate "2023.10.20"]
[EventType "team-tourn"]
[EventCountry "GER"]
[SourceTitle "playchess.com"]
[Source "ChessBase"]
[SourceQuality "1"]
[TimeControl "40/6000+30:3000+30"]

1. Nf3 {[%emt 0:01:19]} d5 {[%emt 0:00:16]} 2. g3 {[%emt 0:01:01]} Nd7 {[%emt 0:00:16]} 3. d4 {[%emt 0:01:15]} Nb6 {[%emt 0:00:10]} 4. Nbd2 {[%emt 0:04:05]} Bf5 {[%emt 0:02:41]} 5. Nh4 {[%emt 0:02:30]} Bg4 {[%emt 0:00:16]} 6. h3 {[%emt 0:00:18]} Bh5 {[%emt 0:00:06]} 7. Ng2 {[%emt 0:00:30]} e5 {[%emt 0:07:08]} 8. dxe5 {[%emt 0:04:58]} Qe7 {[%emt 0:00:56]} 9. Nf4 {[%emt 0:08:44]} Qxe5 {[%emt 0:00:16]} 10. Nxh5 {[%emt 0:00:28]} Qxh5 {[%emt 0:00:05]} 11. Bg2 {[%emt 0:00:10]} Nf6 {[%emt 0:10:14]} 12. O-O {[%emt 0:01:38]} Bc5 {[%emt 0:00:32]} 13. e4 {[%emt 0:18:41]} Qxd1 {[%emt 0:01:08]} 14. Rxd1 {[%emt 0:00:05]} O-O-O {[%emt 0:00:33]} 15. Nb3 {[%emt 0:17:54]} Be7 {[%emt 0:00:30]} 16. exd5 {[%emt 0:01:00]} Nfxd5 {[%emt 0:03:10]} 17. c3 {[%emt 0:02:48]} Nf6 {[%emt 0:16:38]} 18. Re1 {[%emt 0:02:17]} Rhe8 {[%emt 0:04:08]} 19. Na5 {[%emt 0:05:42]} c6 {[%emt 0:00:40]} 20. h4 {[%emt 0:07:17]} Ng4 {[%emt 0:11:18]} 21. Bh3 {[%emt 0:04:39]} f5 {[%emt 0:00:13]} 22. Be3 {[%emt 0:05:27]} Bf6 {[%emt 0:03:28]} 23. Bxb6 {[%emt 0:08:24]} axb6 {[%emt 0:03:27]} 24. Bxg4 {[%emt 0:01:35]} fxg4 {[%emt 0:00:13]} 25. Rxe8 {[%emt 0:02:12]} Rxe8 {[%emt 0:00:04]} 26. Nc4 {[%emt 0:00:05]} Kc7 {[%emt 0:03:02]} 27. Kf1 {[%emt 0:01:30]} b5 {[%emt 0:08:11]} 28. Ne3 {[%emt 0:00:49]} h5 {[%emt 0:00:06]} 29. Re1 {[%emt 0:01:41]} Re5 {[%emt 0:06:29]} 30. Ng2 {[%emt 0:01:46]} Rxe1+ {[%emt 0:07:16]} 31. Kxe1 {[%emt 0:00:11]} g5 {[%emt 0:00:08]} 32. Ke2 {[%emt 0:02:33]} Kd6 {[%emt 0:01:22]} 33. hxg5 {[%emt 0:00:55]} Bxg5 {[%emt 0:00:03]} 34. b3 {[%emt 0:00:35]} Ke5 {[%emt 0:12:07]} 35. Kd3 {[%emt 0:00:25]} Bh6 {[%emt 0:01:15]} 36. Nh4 {[%emt 0:00:56]} Kf6 {[%emt 0:04:22]} 1/2-1/2

[Event "German Bundesliga 2023-24"]
[Site "Germany"]
[Date "2024.02.04"]
[Round "8.13"]
[White "Hoeffer, David"]
[Black "Kasimdzhanov, Rustam"]
[Result "1/2-1/2"]
[ECO "D00"]
[WhiteElo "2323"]
[BlackElo "2679"]
[Annotator "TA"]
[PlyCount "40"]
[EventDate "2023.10.20"]
[EventType "team-tourn"]
[EventCountry "GER"]
[SourceTitle "playchess.com"]
[Source "ChessBase"]
[SourceQuality "1"]
[TimeControl "40/6000+30:3000+30"]

{[%evp 9,40,-7,33,0,27,11,11,14,33,29,33,37,29,31,32,33,33,32,62,0,29,26,32,20,42,42,30,31,33,32,44,39,54]} 1. d4 {[%emt 0:00:04]} Nf6 {[%emt 0:01:27]} 2. Nc3 {[%emt 0:00:07]} d5 {[%emt 0:02:37]} 3. Bf4 {[%emt 0:00:11]} e6 {[%emt 0:02:51]} 4. Nb5 {[%emt 0:00:08]} Na6 {[%emt 0:00:51]} 5. e3 {[%emt 0:00:09]} Ne4 {[%emt 0:04:07]} 6. f3 {[%emt 0:18:11]} Nd6 {[%emt 0:00:24]} 7. Nxd6+ {[%emt 0:00:07]} Bxd6 {[%emt 0:01:50]} 8. Bxa6 {[%emt 0:00:58] The position is equal.} Bxf4 {[%emt 0:04:07]} 9. Bb5+ {[%emt 0:01:53]} c6 {[%emt 0:00:06]} 10. Bxc6+ {[%emt 0:00:04]} bxc6 {[%emt 0:00:06]} 11. exf4 {[%emt 0:00:02]} Qb6 {[%emt 0:05:25]} 12. b3 {[%emt 0:04:21]} Ba6 {[%emt 0:02:56]} 13. Ne2 {[%emt 0:02:31]} O-O {[%emt 0:03:06]} 14. c3 {[%emt 0:05:48]} (14. Nc3 $14) 14... c5 {[%emt 0:00:25]} 15. dxc5 {[%emt 0:07:32]} Qxc5 {[%emt 0:00:09]} 16. Qd4 {[%emt 0:00:05]} Qa3 {[%emt 0:00:33]} 17. Qd2 {[%emt 0:04:56]} Bxe2 {[%emt 0:03:26]} 18. Kxe2 {[%emt 0:00:53]} Rac8 {[%emt 0:07:38] White is slightly better.} 19. Rhc1 {[%emt 0:00:45]} Rc6 {[%emt 0:00:25]} 20. Rc2 {[%emt 0:00:17]} Rfc8 {[%emt 0:00:19] Weighted Error Value: White=0.09 (flawless) /Black=0.16 (very precise) .  Mistake:       	White=1     	---        Inaccurate:     	---       	Black=3      OK:         	White=10    	Black=2      Best:        	---       	Black=1} 1/2-1/2